Cogmind - Beta 16.1 @@@ ROGUE MODE // 2026.02.10 @ 01:09:00 Player: TheSkyeDoctor Result: Destroyed by as-61492 with Assembled Heavy Rifle Performance ------------- Evolutions (0) 0 Regions Visited (2) 400 Robots Destroyed (16) 80 Value Destroyed (199) 199 Prototype IDs (0) 0 Alien Tech Used (0) 0 Bonus (0) 0 TOTAL SCORE: 679 Bonus ------- None Cogmind --------- Core Integrity 0/250 Matter 285/300 Energy 100/100 System Corruption 0% Temperature Cool (0) Movement Rolling (100) Location -10/Mines Parts ------- > --- POWER (1) -------- (None) > --- PROPULSION (2) --- Compact Wheel > --- UTILITY (2) ------ Small Storage Unit > --- WEAPON (2) ------- Mini Grenade Launcher Mining Claw > --- INVENTORY (8) ---- Light Ion Engine Wheel Wheel Wheel Improved Terrain Scanner Hardened Light Armor Plating Light EM Pulse Cannon Mini Grenade Launcher Peak State ------------ > --- POWER ------------ Light Ion Engine > --- PROPULSION ------- Compact Wheel Compact Wheel > --- UTILITY ---------- Small Storage Unit Seismic Detector > --- WEAPON ----------- Mini Grenade Launcher Mini Grenade Launcher > --- INVENTORY -------- Light Ion Engine Wheel Wheel Compact Wheel Improved Terrain Scanner Medium Laser Light EM Pulse Cannon Assault Rifle [Rating: 10] Favorites ----------- Power Light Ion Engine Engine Light Ion Engine Propulsion Compact Wheel Wheel Compact Wheel Utility Small Storage Unit Device Seismic Detector Storage Small Storage Unit Weapon Mini Grenade Launcher Energy Gun Medium Laser Ballistic Gun Assault Rifle Launcher Mini Grenade Launcher Slashing Weapon Mining Claw Build | -11 -10 -10 ------- Run | Yrd Mat Min Slots Evolved . | . . . Power . | . . . Propulsion . | . . . Utility . | . . . Weapon . | . . . Parts Attached 10 | 7 3 . Power 1 | 1 . . Engine 1 | 1 . . Core . | . . . Reactor . | . . . Propulsion 2 | 2 . . Treads . | . . . Leg . | . . . Wheel 2 | 2 . . Hover . | . . . Flight . | . . . Utility 2 | 2 . . Device 1 | 1 . . Storage 1 | 1 . . Processor . | . . . Hackware . | . . . Protection . | . . . Artifact . | . . . Weapon 5 | 2 3 . Energy Gun 1 | 1 . . Energy Cannon . | . . . Ballistic Gun 1 | 1 . . Ballistic Cannon . | . . . Launcher 2 | . 2 . Special Weapon . | . . . Impact Weapon . | . . . Slashing Weapon 1 | . 1 . Piercing Weapon . | . . . Special Melee Weapon . | . . . Unidentified Prototypes . | . . . Parts Lost 3 | . . 3 Power 1 | . . 1 Propulsion 1 | . . 1 Utility 1 | . . 1 Weapon . | . . . Highest Loss Streak 3 | . . 3 To Critical Strikes . | . . . Average Backups 6 | 2 7 8 Power 1 | 1 1 1 Propulsion 2 | 1 3 3 Utility 1 | . 1 2 Weapon 1 | . 1 2 Tool/Special . | . . . Unused Backups 8 | 1 1 6 Power 1 | . . 1 Propulsion 4 | 1 1 2 Utility 2 | . . 2 Weapon 1 | . . 1 Tool/Special . | . . . Average Slot Usage (%) 100 | . 100 100 Engine 14 | . 14 14 Wheel 28 | . 28 28 Device 14 | . 14 14 Storage 14 | . 14 14 Energy Gun 1 | . 1 . Ballistic Gun 1 | . 1 . Launcher 21 | . 22 14 Slashing Weapon 3 | . 2 14 Peak Build Rating 10 | 7 10 9 Average Rating 8 | 5 9 8 On Entrance 5 | . 7 9 Avg Prop Armor Cover (%) . | . . . Naked Turns . | . . . Heaviest Build 13 | 13 13 12 Greatest Support 32 | 32 32 32 Greatest Overweight (x) . | . . . Average Overweight (x) . | . . . Largest Inventory Capacity 8 | 8 8 8 Average Capacity 7 | 7 8 8 Most Carried 8 | 5 8 8 Average Carried 6 | 2 7 8 Final Capacity 8 | 8 8 8 Final Carried 8 | 5 8 8 Class Distribution -------------------- 100% | Mutant Dominant Class ---------------- Mutant | -10/Materials Mutant | -10/Mines Resources | -11 -10 -10 ----------- Run | Yrd Mat Min Matter Collected 393 | 229 164 . Remotely . | . . . Salvage Created 278 | 145 132 1 Parts 28 | 15 13 . Haulers Intercepted . | . . . Recyclers Shooed . | . . . Parts Field Recycled . | . . . Retrieved Matter . | . . . Parts Self-Destructed . | . . . Prevented . | . . . Parts Restored . | . . . Kills | -11 -10 -10 ------- Run | Yrd Mat Min Combat Hostiles Destroyed 8 | . 5 3 Melee 1 | . 1 . AOE 7 | . 4 3 Classes Destroyed 8 | 2 5 1 Worker 2 | . 2 . Builder 2 | . 2 . Tunneler 4 | 4 . . Recycler 1 | 1 . . Watcher 2 | . 2 . Swarmer 3 | . 3 . Grunt 2 | . 2 . Assembled 3 | . . 3 Best Kill Streak 9 | 4 9 3 Combat Bots Only 5 | . 5 3 Max Kills in Single Turn 4 | 1 4 2 Gunslinging . | . . . Exploded 3 | . 3 2 Melee 1 | . 1 . Uniques/NPCs Destroyed . | . . . Combat | -11 -10 -10 -------- Run | Yrd Mat Min Hostile Shots Fired 34 | . 11 23 Missed 9 | . 2 7 Hits 25 | . 9 16 Melee 3 | . . 3 Projectile 22 | . 9 13 Critical Strikes 1 | . 1 . Damage Taken 448 | . 99 349 Core 254 | . 39 215 Absorbed by Shields . | . . . Core Remaining (%) 100 | 100 . . Volleys Fired 17 | 11 3 3 Largest 2 | 2 2 1 Hottest 70 | 70 60 30 Shots Fired 31 | 22 6 3 Gun 22 | 22 . . Cannon . | . . . Launcher 9 | . 6 3 Special . | . . . Kinetic 11 | 11 . . Thermal 11 | 11 . . Explosive 9 | . 6 3 Electromagnetic . | . . . Robot Hit Streak 4 | 4 2 2 Robot Miss Streak 2 | 2 2 1 Penetration Max . | . . . Secondary Targets . | . . . Shots Hit Robots 20 | 13 5 2 Core Hits 29 | 6 15 8 Critical Kills . | . . . Critical Parts Destroyed . | . . . Critical Strikes . | . . . Melee Attacks 4 | . 3 1 Impact . | . . . Slashing 4 | . 3 1 Piercing . | . . . Sneak Attacks . | . . . Combat Hostiles . | . . . Follow-up Attacks . | . . . Damage Inflicted 1044 | 165 637 242 Guns 165 | 165 . . Cannons . | . . . Explosions 830 | . 588 242 Melee 49 | . 49 . Ramming . | . . . Kinetic 65 | 65 . . Thermal 100 | 100 . . Explosive 830 | . 588 242 Electromagnetic . | . . . Impact . | . . . Slashing 49 | . 49 . Piercing . | . . . Highest Corruption . | . . . Average Corruption . | . . . Corruption Purged . | . . . Corruption Blocked . | . . . Overload Shots . | . . . Overflow Damage 42 | . 10 32 Projectiles . | . . . Explosions 37 | . 5 32 Melee 5 | . 5 . Knockbacks . | . . . Impact . | . . . Kinetic . | . . . Secondary . | . . . Self-Inflicted Damage 52 | . . 52 Shots 2 | . . 2 Rammed . | . . . Targets Rammed . | . . . Kicked . | . . . Crushed . | . . . Highest Temperature 47 | 47 42 . Average Temperature 16 | 14 23 . Received Heat Transfer 51 | . 51 . Siege Activations . | . . . Martial Activations . | . . . Shielding Activations . | . . . Robots Disrupted . | . . . Combat Hostiles . | . . . Robots Corrupted . | . . . Combat Hostiles . | . . . Parts Fried . | . . . Impact Corruptions . | . . . Robots Melted . | . . . Combat Hostiles . | . . . Parts Melted . | . . . Heat Transferred 296 | 296 . . Parts Sabotaged . | . . . Parts Stolen . | . . . Parts Stripped . | . . . Power Chain Reactions . | . . . Alert | -11 -10 -10 ------- Run | Yrd Mat Min Maximum Alert Level . | . . . Low Security (%) 100 | 100 100 100 Level 1 . | . . . Level 2 . | . . . Level 3 . | . . . Level 4 . | . . . Level 5 . | . . . High Security . | . . . Max Security . | . . . Peak Influence 156 | 10 156 52 Initial 52 | . . 52 Average 23 | 1 30 48 Influence Increases 234 | 25 178 31 Destroy 0b10 Robot/C 100 | . 100 . Destroy 0b10 Robot/NC 55 | 25 30 . Destroy Leader 24 | . 24 . Disable Machine 15 | . . 15 Destroy Structure 40 | . 24 16 Influence Decreases 191 | 25 42 124 Entered New Map 84 | . . 84 Time Decay 77 | 25 42 10 Lost Part 30 | . . 30 Squads Dispatched . | . . . Investigation . | . . . Extermination . | . . . Reinforcement . | . . . Assault . | . . . Garrison . | . . . Intercept . | . . . Searches Triggered . | . . . Construction Impeded . | . . . Haulers Reinforced . | . . . Active Scanning Responses . | . . . Cargo Convoy Interrupts . | . . . Stealth | -11 -10 -10 --------- Run | Yrd Mat Min Distress Signals 1 | . 1 . Communications Jammed . | . . . Distress Signals . | . . . Times Spotted 23 | . 7 16 Peak Tracking Total 20 | . 6 20 Tactical Retreats 1 | . . 1 Traps | -11 -10 -10 ------- Run | Yrd Mat Min Traps Triggered . | . . . Indirectly . | . . . Trap Hack Attempts . | . . . Triggered . | . . . Disarmed . | . . . Reprogrammed . | . . . Reused . | . . . Traps Extracted . | . . . Installed . | . . . Triggered . | . . . Machines | -11 -10 -10 ---------- Run | Yrd Mat Min Machines Disabled 1 | . . 1 Max in Single Turn 1 | . . 1 Machines Repaired . | . . . Machines Dismantled . | . . . Machines Sabotaged . | . . . Overloaded Fab Kills . | . . . Hacking | -11 -10 -10 --------- Run | Yrd Mat Min Machines Accessed 1 | . 1 . Terminals 1 | . 1 . Fabricators . | . . . Repair Stations . | . . . Recycling Units . | . . . Scanalyzers . | . . . Garrison Access . | . . . Total Hacks 2 | . 2 . Successful . | . . . Failed 2 | . 2 . Catastrophic . | . . . Database Lockouts . | . . . Manual 2 | . 2 . Terminals 2 | . 2 . Fabricators . | . . . Repair Stations . | . . . Recycling Units . | . . . Scanalyzers . | . . . Garrison Access . | . . . Terminal Hacks . | . . . Fabricator Hacks . | . . . Repair Station Hacks . | . . . Recycling Unit Hacks . | . . . Scanalyzer . | . . . Garrison Access Hacks . | . . . Unauthorized Hacks . | . . . Terminals . | . . . Fabricators . | . . . Repair Stations . | . . . Recycling Units . | . . . Scanalyzers . | . . . Garrison Access . | . . . Data Cores Recovered . | . . . Used . | . . . Hacking Detections 1 | . 1 . Full Trace Events . | . . . Feedback Events . | . . . Feedback Blocked . | . . . Robot Schematics Acquired . | . . . Robots Built . | . . . Authchips . | . . . Time . | . . . Total Robot Build Rating . | . . . Part Schematics Acquired . | . . . Parts Built . | . . . Authchips . | . . . Time . | . . . Total Part Build Rating . | . . . Part Studies Acquired . | . . . Parts Repaired . | . . . Time . | . . . Parts Recycled . | . . . Recycled Matter . | . . . Retrieved Matter . | . . . Retrieved Components . | . . . Parts Scanalyzed . | . . . Part Schematics Acquired . | . . . Parts Damaged . | . . . Bothacking | -11 -10 -10 ------------ Run | Yrd Mat Min Used RIF Installer . | . . . Robots Hacked . | . . . Non-combat . | . . . Combat . | . . . Robot Hacks Applied . | . . . Relay Couplers Released . | . . . Fabnet Peak Effective % . | . . . Robots Rewired . | . . . Allies Hacked . | . . . Hacks Repelled . | . . . Allies | -11 -10 -10 -------- Run | Yrd Mat Min Total Allies . | . . . Largest Group . | . . . Highest-Rated Group . | . . . Highest-Rated Ally . | . . . Total Orders . | . . . Ally Attacks . | . . . Total Damage . | . . . Kills . | . . . Allies Corrupted . | . . . Allies Melted . | . . . Intel | -11 -10 -10 ------- Run | Yrd Mat Min Active Infowar (turns) 282 | 12 241 29 Seismic 282 | 12 241 29 Robot Analysis Total . | . . . Derelict Logs Recovered 1 | . . 1 Drone Launches . | . . . Drone Recoveries . | . . . Exploration | -11 -10 -10 ------------- Run | Yrd Mat Min Turns Passed 387 | 114 241 32 Spaces Moved 265 | 65 176 24 Core 9 | 9 . . Treads . | . . . Legs . | . . . Wheels 256 | 56 176 24 Hover . | . . . Flight . | . . . Fastest Speed 50 | 50 100 100 Average Speed 98 | 93 100 100 Slowest Speed 100 | 100 100 100 Overloaded Moves . | . . . Propulsion Burnouts . | . . . Robots Hopped . | . . . Potential Cave-ins . | . . . Cave-ins Triggered . | . . . Exploration Rate (%) 17 | 5 36 11 Regions Visited 2 Branch Regions 1 Pre-discovered Areas . | . . . Known Exits Taken . | . . . Unknown Exits Taken 2 | 1 1 . Scrap Searched 1 | . . 1 Spaces Dug . | . . . Terrain Destroyed 43 | . 24 19 Melee . | . . . Projectile . | . . . AOE 43 | . 24 19 Terrain Rammed . | . . . Walls Destroyed . | . . . Machines Disabled . | . . . Actions | -11 -10 -10 --------- Run | Yrd Mat Min Total 353 | 96 229 28 Wait 36 | . 36 . Move 263 | 64 175 24 Hop . | . . . Pick Up 19 | 13 6 . Fast Attach . | . . . Attach 7 | 7 . . Detach . | . . . Swap 3 | . 3 . Drop 4 | 1 3 . Fire 17 | 11 3 3 Melee 4 | . 3 1 Ram . | . . . Kick . | . . . Crush . | . . . Escape Stasis . | . . . Rewire . | . . . Trap . | . . . Miscellaneous . | . . . Route ------- -11/Scrapyard -10/Materials -10/Mines History --------- Turn | Location | Event 19 | -11/Scrapyard | Discovered new exit (range 15) 115 | -11/Scrapyard | Entered Materials 311 | -10/Materials | Build established: Mutant 345 | -10/Materials | Discovered new exit (range 12) 356 | -10/Materials | Entered Mines 357 | -10/Mines | Assembled infested the area 363 | -10/Mines | Met a Derelict bent on vengeance 364 | -10/Mines | Learned Materials emergency access door positions 382 | -10/Mines | Core integrity fell below 50% 386 | -10/Mines | Core integrity fell below 20% 388 | -10/Mines | Destroyed by as-61492 with Assembled Heavy Rifle Last Messages --------------- GOAL=ESCAPE ALERT: Infestation in the mines, dispatching Demolisher response squad. K-01 Serf collects debris. Searching scrap... Found 37 Matter. Found 67 Matter. Acquired derelict log, extracted data. Data stored: Materials emergency access points. K-01 Serf collects debris. as-81197 destroyed. Seismic Detector destroyed. Destroyed Seismic Detector. Lgt. Ion Engine destroyed. Destroyed Lgt. Ion Engine. Com. Wheel destroyed. Destroyed Com. Wheel. as-60930 destroyed. Core Extractor disabled. as-80274 destroyed. Map ----- +----------------------------------------------------+ | | | | | | | | | | | | | | | | | | | | | | | | | | | | | | | ??????????????????????????????????????? | | ??????????????????????????????????????? | | ??????????????????????????????????????? | | ??????????????????????????????????????? | | ??????????????????????????????????????? | | ??????????????????????????????????????? | | ??????????????????########????????????? | | ?????????????????## ###??????????? | | ?????????????????# ##?????????? | | ??????????????????# #?????????? | | ???????????????????# " @ #?????????? | | ???????????????????## #????????? | | ???????????????# #### ##????????? | | ???????????????# ####??????? | | ???????????????##### #?????? | | ???????????????????## a ### #?????? | | ????????????????????# ##?????????? | | ???????????????????# ##??????????? | | ???????????????????## ???????????? | | ??????????????????## ##??????????? | | ????????????????### aa ##?????????? | | ????????????????# ##### #???? | | ????????????????# a### #???? | | ????????????????# #??## ##### #???? | | ????????????????# ????# ##?????????? | | ??????????????? ?????# ##??????????? | | ??????????????### ?????# %#???????????? | | ???????????????????????# %#???????????? | | ???????????????????????# #???????????? | | ?????????????????????### ###?????????? | | ????????????????# #### #?????????? | | ????????? " = #?????????? | | ???????????????####### #?????????? | | ?????????????????????# ! #?????????? | | ?????????????????????# #?????????? | +----------------------------------------------------+ Best States ------------- Heat Dissipation 25 Energy Generation 10 Energy Capacity 125 Matter Stores 300 Matter Capacity 300 Sight Range 16 Terrain Scan Density 10 Evasion (%) 50 Item Schematics ----------------- None Robot Schematics ------------------ None Fabricated ------------ Nothing Repaired ---------- Nothing Studied --------- None Alien Tech Used ----------------- None Achievements -------------- None Challenges ------------ None Game ------ Seed TerrainShiftMaul Manual? 0 Play Time 00:05:37 Cumulative 15.0 hours Start 2026.02.10 @ 01:04:03 End 2026.02.10 @ 01:09:00 Sessions 1 Manual Loads 0 Difficulty Rogue Special Mode None Game No. 33 Rogue 33 Adventurer 0 Explorer 0 Win Type - Total 0 Types 0/0/0/0/0/0/0/0/0/0 Lore% 15 Gallery% 19 Achievement% 16 Wizard Run 0 Options --------- Layout 1 ASCII 0 Keyboard 0 Movement Mouse Keybinds 0 Fullscreen 1 Font 24/Smallcaps Map View 50x35 Zoom Use 0% Tactical HUD 0 Map Filters NONE Filters NONE Steam 1 RUN: 0b9094b9-9eda-4123-b1ea-84d9d0d5f7f1